[Event "22nd Indian Women chT 2025"]
[Site "Gujarat"]
[Date "2025.03.06"]
[Round "2.5"]
[White "Priyanka Nutakki"]
[Black "Tanisha Khandelwal"]
[Result "1-0"]
[Annotator "TA"]
[ECO "D37"]
[WhiteElo "2284"]
[BlackElo "1620"]
[PlyCount "67"]
[EventDate "2025.03.03"]
[EventCountry "IND"]
[SourceTitle "playchess.com"]
[Source "ChessBase"]
[SourceQuality "1"]
[TimeControl "5400+30"]

{[%evp 9,66,31,44,44,45,35,35,25,45,47,48,48,48,48,50,46,49,49,41,38,19,4,38,0,61,71,66,74,79,28,17,11,47,49,70,40,403,404,411,411,402,420,406,397,651,662,610,600,2112,2135,2091,2047,29995,29996,29996,29997,29998,29999,29999]} 1. d4 {[%emt 0:05:14]} d5 {[%emt 0:00:26]} 2. c4 {[%emt 0:00:18]} e6 {[%emt 0:01:27]} 3. Nc3 {[%emt 0:00:18]} Nf6 {[%emt 0:01:38]} 4. Nf3 {[%emt 0:01:56]} h6 {[%emt 0:03:32]} 5. Bf4 {[%emt 0:02:04]} c6 {[%emt 0:01:49]} 6. e3 {[%emt 0:00:20] D37: Queen's Gambit Declined: 5 Bf4.} Be7 {[%emt 0:04:13]} 7. h3 {[%emt 0:00:38]} Nbd7 {[%emt 0:05:05]} 8. cxd5 {[%emt 0:01:15] White is slightly better.} exd5 {[%emt 0:00:52]} 9. Bd3 {[%emt 0:00:06]} Nb6 {[%emt 0:03:38]} 10. Ne5 $146 {[%emt 0:02:10]} (10. Rc1 O-O 11. O-O Be6 12. b3 a5 13. a4 Nc8 14. Qc2 Nh5 15. Bh2 g6 16. Ne2 {½-½ Poor,S (1971)-Laddha,Y (2031) Budapest FS09 Nadassy 2021 (10.2)}) 10... Be6 {[%emt 0:03:53]} 11. O-O {[%emt 0:00:38]} O-O {[%emt 0:01:37]} 12. Qe2 {[%emt 0:05:08]} Re8 {[%emt 0:03:50]} 13. Bh2 {[%emt 0:01:41]} a6 {[%emt 0:03:14]} 14. a4 {[%emt 0:00:50][%cal Ba2a4,Ba4a5][%mdl 32]} c5 {[%emt 0:04:24]} 15. a5 {[%emt 0:04:26]} Nbd7 {[%emt 0:03:59]} 16. f4 {[%emt 0:02:03] [#]} Nf8 {[%emt 0:05:59]} (16... Nb8 $11) 17. Qf3 $14 {[%emt 0:03:16] White has more active pieces.} cxd4 {[%emt 0:02:02]} 18. exd4 {[%emt 0:00:06]} Bb4 {[%emt 0:03:08]} 19. Bg3 {[%emt 0:09:23]} ({White should play} 19. Kh1 $16) 19... Bxa5 $11 {[%emt 0:06:34]} 20. Bh4 {[%emt 0:00:51][%cal Oa1a5] Rxa5! would now be deadly.} Bxc3 {[%emt 0:00:33]} 21. bxc3 {[%emt 0:00:38] Strong Square White (e5)} Rc8 {[%emt 0:04:44]} 22. Rac1 {[%emt 0:12:15]} N8h7 $2 {[%emt 0:10:23][%mdl 8192] [#] A mistake that costs the game.} ({Better is} 22... Rc7 $14) 23. Bxh7+ $1 $18 {[%emt 0:03:19]} Kxh7 {[%emt 0:00:14]} 24. f5 {[%emt 0:01:56]} Bd7 {[%emt 0:00:42]} 25. Bxf6 $1 {[%emt 0:06:21]} (25. Nxf7 Qb6 $16) 25... gxf6 {[%emt 0:00:32]} 26. Nxf7 {[%emt 0:00:49][%cal Of3h5] White wants to mate with Qh5!.} Qe7 $2 {[%emt 0:03:02]} (26... Qc7 27. Qh5 (27. Qxd5 $2 {too greedy.} Bc6 $19) 27... Qg3 28. Qxh6+ (28. Nxh6 $2 Qe3+ 29. Kh2 Qxh6 $19) 28... Kg8) 27. Qh5 {[%emt 0:00:05][%csl Gf5][%cal Rh5g6]} ({Worse is} 27. Qxd5 Qe3+ 28. Kh2 Bc6 $17) 27... Qe3+ {[%emt 0:00:39]} 28. Kh1 {[%emt 0:00:33]} Rg8 {[%emt 0:01:25][%cal Oc8e8] Dodges Qg6+} 29. Rce1 {[%emt 0:00:11][%cal Bc1e1,Be1e2,Be2e7][%mdl 32]} Qd2 {[%emt 0:03:32]} 30. Re2 {[%emt 0:00:13]} Qg5 {[%emt 0:02:35]} 31. Nxg5+ {[%emt 0:01:03] White mates.} Rxg5 {[%emt 0:00:16]} 32. Re7+ {[%emt 0:00:04]} Rg7 {[%emt 0:01:05]} 33. Qg6+ {[%emt 0:00:05]} Kh8 {[%emt 0:00:44]} 34. Qxg7# {[%emt 0:00:04] Weighted Error Value: White=0.05 (flawless) /Black=0.82  Loses game:     	---       	Black=1      Mistake:       	White=1     	Black=2      Inaccurate:     	White=1     	Black=2      OK:         	White=6     	Black=8      Best:        	White=1     	Black=2      Strong:       	White=2     	---} 1-0

[Event "22nd Indian Women chT 2025"]
[Site "Gujarat"]
[Date "2025.03.06"]
[Round "2.6"]
[White "Shivamshika G"]
[Black "Chitlange Sakshi"]
[Result "1/2-1/2"]
[Annotator "TA"]
[ECO "E20"]
[WhiteElo "1801"]
[BlackElo "2200"]
[PlyCount "81"]
[EventDate "2025.03.03"]
[EventCountry "IND"]
[SourceTitle "playchess.com"]
[Source "ChessBase"]
[SourceQuality "1"]
[TimeControl "5400+30"]

{[%evp 10,81,-8,-15,16,0,0,0,0,-13,50,50,70,12,26,25,30,21,7,13,13,12,64,26,35,14,52,27,25,32,25,29,34,21,25,22,109,72,90,94,170,170,157,157,175,91,127,0,0,0,0,0,0,0,0,0,0,0,0,0,0,0,0,0,0,0,0,0,0,0,0,0,0,0]} 1. d4 {[%emt 0:00:04]} Nf6 {[%emt 0:04:16]} 2. c4 {[%emt 0:00:26]} e6 {[%emt 0:00:04]} 3. Nc3 {[%emt 0:00:28]} Bb4 {[%emt 0:00:08]} 4. f3 {[%emt 0:00:20]} c5 {[%emt 0:00:14]} 5. d5 {[%emt 0:00:29]} O-O {[%emt 0:00:06]} 6. e4 {[%emt 0:00:41]} Re8 {[%emt 0:00:02] E20: Nimzo-Indian: 4 g3 and 4 f3.} 7. Bd2 {[%emt 0:03:29]} d6 {[%emt 0:01:02]} 8. Nge2 {[%emt 0:01:43]} a6 {[%emt 0:02:35] is the legacy move (8...exd5).} 9. Nf4 {[%emt 0:04:21]} e5 $146 {[%emt 0:06:45]} ({Black should play} 9... exd5 $11 10. Ncxd5 Bxd2+ 11. Qxd2 Nxd5 12. Qxd5 Nc6) (9... exd5 10. cxd5 Nbd7 11. Be2 Ne5 12. O-O Bd7 13. Qe1 b5 14. g4 Re7 15. Ng2 c4 {0-1 Hasterok,M (2029)-Czopor,M (2178) Gora Sw Anny op 13th 2020 (1)}) 10. Nfe2 {[%emt 0:00:15]} Nh5 {[%emt 0:02:26]} 11. g3 {[%emt 0:01:49]} (11. Qc2 $14) 11... f5 {[%emt 0:01:14]} 12. Bg2 {[%emt 0:01:22]} Nf6 {[%emt 0:08:52][%cal Ob7b5]} 13. Qc2 {[%emt 0:02:52]} fxe4 {[%emt 0:01:48]} 14. fxe4 {[%emt 0:01:50]} Rf8 {[%emt 0:04:39]} 15. O-O {[%emt 0:01:34]} Bg4 {[%emt 0:03:12]} (15... b5 $11) 16. Rf2 {[%emt 0:05:18]} Nbd7 {[%emt 0:01:22]} 17. Raf1 {[%emt 0:06:26]} Qe7 {[%emt 0:00:47]} 18. Nd1 {[%emt 0:03:06]} Bxe2 {[%emt 0:08:16]} 19. Rxe2 {[%emt 0:00:29]} Bxd2 {[%emt 0:00:12]} 20. Qxd2 {[%emt 0:00:31]} b5 {[%emt 0:03:45]} 21. Ne3 {[%emt 0:02:43]} g6 {[%emt 0:02:19] Dodges Nf5} 22. Ref2 {[%emt 0:02:29]} Qg7 {[%emt 0:02:45]} (22... b4 $11 {keeps the balance.}) 23. Qa5 {[%emt 0:08:16]} Qh6 {[%emt 0:12:52]} 24. Re1 {[%emt 0:00:38]} Rfc8 {[%emt 0:03:33] Inhibits Qc7.} (24... Rfb8 $16) 25. cxb5 $18 {[%emt 0:04:39]} axb5 {[%emt 0:00:01]} 26. Qxb5 {[%emt 0:00:19]} Rxa2 {[%emt 0:00:56] [#]} 27. Nc4 {[%emt 0:03:44]} ({Better is} 27. Qf1 $1 $18 Rf8 28. Nc4) 27... Rb8 {[%emt 0:11:39] [#]} 28. Qc6 {[%emt 0:04:32] White is more active.} (28. Qxb8+ $1 $16 Nxb8 29. Rxf6) 28... Ng4 $1 $11 {[%emt 0:02:00][%csl LRf2,LRh2][%cal Bf6g4,Bg4f2,Bf2d3,Bd3e1][%mdl 32] The position is equal.} 29. h4 {[%emt 0:18:29]} Nxf2 {[%emt 0:00:51]} 30. Qxd7 {[%emt 0:00:16]} Nd3 {[%emt 0:03:04][%csl LRb2,LRe1]} 31. Qe6+ {[%emt 0:10:13]} (31. Rf1 $5 Rf8 $8 32. Qe6+ Kh8 33. Qxd6 $11) 31... Kh8 $1 {[%emt 0:01:28]} 32. Nxd6 {[%emt 0:02:52] and Nf7+ would now be decisive} Rf8 {[%emt 0:05:05]} 33. Nf7+ {[%emt 0:05:43]} Rxf7 $1 {[%emt 0:00:03]} 34. Qxf7 {[%emt 0:00:02]} Nxe1 {[%emt 0:00:35]} 35. Qe8+ {[%emt 0:00:11]} Kg7 {[%emt 0:00:04][%cal Oe1f3] ( -> ...Nf3+!)} 36. Qe7+ {[%emt 0:00:12]} Kg8 {[%emt 0:01:24]} 37. Qe6+ {[%emt 0:00:06]} Kf8 {[%emt 0:02:55]} 38. Qf6+ {[%emt 0:00:09]} Kg8 {[%emt 0:02:50]} 39. Qe6+ {[%emt 0:00:04]} Kf8 {[%emt 0:00:45]} 40. Qf6+ {[%emt 0:00:03]} Kg8 {[%emt 0:00:09]} 41. Qe6+ {[%emt 0:00:06] Weighted Error Value: White=0.18 (very precise) /Black=0.16 (very precise)   Mistake:       	White=3     	Black=4      Inaccurate:     	White=2     	Black=2      OK:         	White=9     	Black=10     Best:        	White=4     	Black=3      Strong:       	---       	Black=3} 1/2-1/2

[Event "22nd Indian Women chT 2025"]
[Site "Gujarat"]
[Date "2025.03.06"]
[Round "2.7"]
[White "Arpita, Mukherjee"]
[Black "Nanditha V"]
[Result "1-0"]
[Annotator "TA"]
[ECO "B12"]
[WhiteElo "2163"]
[BlackElo "1904"]
[PlyCount "57"]
[EventDate "2025.03.03"]
[EventCountry "IND"]
[SourceTitle "playchess.com"]
[Source "ChessBase"]
[SourceQuality "1"]
[TimeControl "5400+30"]

{[%evp 9,57,1,7,-5,5,0,33,18,33,20,22,18,72,74,60,29,16,19,35,0,0,0,0,-29,14,0,81,58,47,47,151,141,168,122,168,44,170,161,161,171,170,160,164,180,361,327,366,403,377,377]} 1. e4 {[%emt 0:05:17]} c6 {[%emt 0:00:51]} 2. d4 {[%emt 0:00:07]} d5 {[%emt 0:00:10]} 3. e5 {[%emt 0:00:05]} c5 {[%emt 0:00:19]} 4. dxc5 {[%emt 0:00:08]} e6 {[%emt 0:00:11]} 5. a3 {[%emt 0:01:05]} Bxc5 {[%emt 0:07:30]} 6. b4 {[%emt 0:00:21] B12: Caro-Kann: Advance Variation.} Bb6 {[%emt 0:01:56][%cal Og8f6]} 7. Nf3 {[%emt 0:02:32]} Nc6 {[%emt 0:05:02]} 8. Bd3 {[%emt 0:01:02] White is slightly better. is the legacy move (8.Bb2).} Nge7 {[%emt 0:07:57]} 9. O-O {[%emt 0:00:30]} Ng6 {[%emt 0:00:35]} 10. Re1 {[%emt 0:00:57]} Qc7 {[%emt 0:02:06] [#]} (10... a5 $11) 11. Bb2 $1 $16 {[%emt 0:01:00]} O-O {[%emt 0:06:02]} 12. g3 {[%emt 0:09:19]} f6 $146 {[%emt 0:04:21]} ({Predecessor:} 12... Bd7 13. h4 f6 14. c4 dxc4 15. Bxg6 hxg6 16. Qd6 Qxd6 17. exd6 e5 18. Nbd2 Be6 {½-½ Blagojevic,T (2088)-Velikic,A (2224) EU-ch U18 Girls 24th 2014 (3)}) 13. exf6 {[%emt 0:06:11]} gxf6 {[%emt 0:03:03]} 14. c4 {[%emt 0:01:37]} dxc4 {[%emt 0:08:08]} 15. Bxc4 {[%emt 0:00:14][%cal Ob1d2]} Nce5 {[%emt 0:01:41]} 16. Be2 {[%emt 0:02:13]} Bd7 {[%emt 0:09:45]} 17. Qb3 {[%emt 0:02:56]} Rae8 {[%emt 0:10:26]} (17... Rac8 $11 {keeps the balance.} 18. Nc3 Nxf3+ 19. Bxf3 Ne5) 18. a4 {[%emt 0:04:58] [#]} a6 {[%emt 0:04:48]} 19. Nd4 {[%emt 0:18:00]} Rf7 {[%emt 0:14:36]} (19... Nc6 $14 20. Nxc6 Bxc6) 20. Nd2 {[%emt 0:02:30]} Nc6 {[%emt 0:00:56]} 21. N2f3 {[%emt 0:02:58]} ({White should try} 21. N4f3 $18) 21... h5 {[%emt 0:02:44]} (21... Qd6 $16) 22. Bc4 {[%emt 0:05:14]} (22. Nf5 $18 exf5 23. Bc4) 22... Nxd4 {[%emt 0:02:22] This costs Black the game.} (22... Nge5 $1 $14 23. Nxe5 (23. Nxe6 Bxe6 24. Bxe5 Bxc4 $15) (23. Bxe6 $2 Rxe6 24. Nxe6 Bxe6 $19) 23... fxe5 24. Nxe6 Bxf2+ 25. Kg2 Bxe6 26. Bxe6 Bxe1 27. Rxe1 Qe7 28. Bxf7+ Qxf7 29. Qxf7+ Kxf7) 23. Bxd4 $18 {[%emt 0:03:58]} Bxd4 {[%emt 0:00:42]} 24. Nxd4 {[%emt 0:00:01][%cal Bf3d4,Bd4e6,Be6c5,Bc5e4][%mdl 32]} Ne5 {[%emt 0:00:22]} 25. Bxe6 {[%emt 0:01:45]} (25. Nxe6 $2 {is the wrong capture.} Qxc4 26. Qxc4 Nxc4 $19) 25... Rxe6 {[%emt 0:03:14]} 26. Nxe6 {[%emt 0:00:10]} Qb6 {[%emt 0:00:17]} (26... Bxe6 {might work better.} 27. Qxe6 Nf3+ 28. Kg2 Nxe1+ 29. Rxe1 Kg7) 27. Nc5 {[%emt 0:03:33] Strongly threatening Nxd7.} Bc6 {[%emt 0:00:41]} 28. Re3 {[%emt 0:01:29] Against Nf3+} a5 {[%emt 0:00:45]} 29. Ne4 {[%emt 0:04:49] Weighted Error Value: White=0.23 (precise) /Black=0.36  Mistake:       	White=2     	Black=6      Inaccurate:     	White=3     	Black=2      OK:         	White=6     	Black=6      Best:        	---       	Black=1      Strong:       	White=1     	Black=1} 1-0

[Event "22nd Indian Women chT 2025"]
[Site "Gujarat"]
[Date "2025.03.06"]
[Round "2.8"]
[White "Samhita Pungavanam"]
[Black "Priyanka, K."]
[Result "0-1"]
[Annotator "TA"]
[ECO "B51"]
[WhiteElo "1757"]
[BlackElo "2086"]
[PlyCount "92"]
[EventDate "2025.03.03"]
[EventCountry "IND"]
[SourceTitle "playchess.com"]
[Source "ChessBase"]
[SourceQuality "1"]
[TimeControl "5400+30"]

{[%evp 9,92,0,0,10,16,4,26,-11,-7,-8,-4,-12,0,-16,-16,-8,-15,-25,-30,-18,-27,-56,-16,-34,-26,-30,-30,-49,-32,-46,-32,-41,-42,-46,-33,-119,-55,-153,-76,-97,-101,-109,-103,-117,-113,-100,-104,-113,-104,-144,-128,-252,-254,-241,-215,-264,-254,-222,-154,-464,-483,-540,-472,-514,-518,-535,-574,-600,-495,-1080,-1362,-1370,-1271,-1412,-1412,-29978,-29976,-29974,-29975,-6712,-6628,-29989,-29986,-29991,-29989]} 1. e4 {[%emt 0:00:02]} c5 {[%emt 0:04:58]} 2. Nf3 {[%emt 0:01:08]} d6 {[%emt 0:00:06]} 3. Bb5+ {[%emt 0:01:11]} Nd7 {[%emt 0:00:18]} 4. O-O {[%emt 0:01:43]} a6 {[%emt 0:00:09]} 5. Be2 {[%emt 0:00:06]} Ngf6 {[%emt 0:01:01]} 6. d3 {[%emt 0:01:12] B51: Sicilian: Moscow Variation (3 Bb5+) without 3...Bd7.} e6 {[%emt 0:01:03]} 7. a4 {[%emt 0:04:03]} b6 {[%emt 0:00:51]} 8. Nc3 {[%emt 0:03:36] White has an edge.} Bb7 {[%emt 0:00:41]} 9. Bf4 {[%emt 0:02:44]} Be7 {[%emt 0:01:41]} 10. Re1 {[%emt 0:03:44]} O-O {[%emt 0:01:24]} 11. Qd2 $146 {[%emt 0:03:41]} ({Predecessor:} 11. h3 Re8 12. Qd2 h6 13. Rad1 Bf8 14. Bf1 Qc7 15. Bh2 Rad8 16. d4 cxd4 17. Nxd4 {0-1 Balabayeva,K (2318)-Zakhartsov,V (2506) Titled Tuesday intern op 17th Aug blitz 2021 (2)}) 11... e5 {[%emt 0:10:30]} 12. Bg5 {[%emt 0:02:29]} h6 {[%emt 0:01:18]} 13. Bxf6 {[%emt 0:05:23]} Nxf6 {[%emt 0:01:26]} 14. h3 {[%emt 0:04:55]} Re8 {[%emt 0:04:26]} 15. Qe3 {[%emt 0:06:34]} Bf8 {[%emt 0:04:10]} 16. Nh2 {[%emt 0:05:58]} h5 {[%emt 0:18:03]} 17. Bf3 {[%emt 0:03:09]} g6 {[%emt 0:00:58]} 18. Rad1 {[%emt 0:13:30]} Nh7 {[%emt 0:02:58][%cal Bf6h7,Bh7g5,Bg5e6][%mdl 32]} 19. g3 {[%emt 0:07:06]} Ng5 {[%emt 0:02:30]} 20. Bg2 {[%emt 0:03:13]} Bh6 {[%emt 0:01:54][%cal Og5h3]} 21. Qe2 {[%emt 0:03:13]} (21. h4 $2 Nh3+ 22. Bxh3 Bxe3 $19) 21... Ne6 {[%emt 0:04:46]} 22. Nf3 {[%emt 0:07:27] [#]} (22. Ra1 $15) 22... h4 {[%emt 0:01:19]} ({Black should play} 22... Nd4 $1 $17 {[%cal Rd4e2][%mdl 512]} 23. Nxd4 exd4) 23. Kh2 {[%emt 0:05:04]} (23. Nxh4 Nd4 24. Qf1 Nxc2 $19) ({White should play} 23. Ra1 $15) 23... Qd7 {[%emt 0:04:11]} (23... Nd4 $142 24. Nxd4 cxd4 (24... exd4 25. Nb1 $17)) 24. Nd5 {[%emt 0:04:19]} Bxd5 {[%emt 0:04:16]} (24... Qxa4 25. Nxb6 (25. Nxh4 Bxd5 26. Ra1 Ba2 $19) 25... hxg3+ 26. fxg3 $16) 25. exd5 {[%emt 0:00:08]} Nd4 {[%emt 0:00:19]} 26. Nxd4 {[%emt 0:03:13]} hxg3+ {[%emt 0:00:55]} 27. fxg3 {[%emt 0:01:06]} exd4 {[%emt 0:00:15]} 28. Qf3 {[%emt 0:00:52]} Qxa4 {[%emt 0:00:42] Black is more active.} 29. b3 {[%emt 0:00:32]} Qd7 {[%emt 0:00:46]} 30. g4 {[%emt 0:01:28]} (30. Re4 $17 {keeps fighting.}) 30... Rxe1 $19 {[%emt 0:06:28]} 31. Rxe1 {[%emt 0:00:02]} Re8 {[%emt 0:00:12]} 32. Re4 {[%emt 0:02:20]} Bg7 {[%emt 0:00:45]} 33. h4 {[%emt 0:00:37]} Re5 {[%emt 0:04:34]} 34. Rxe5 $2 {[%emt 0:00:51] This move loses the game for White.} (34. h5 $17 {is a better chance.}) 34... Bxe5+ $17 {[%emt 0:00:17][%mdl 4096] Endgame KQB-KQB. Black is a pawn up.} ({Not} 34... dxe5 35. g5 $15) 35. Kg1 {[%emt 0:00:23]} a5 {[%emt 0:00:56]} 36. h5 {[%emt 0:00:35]} Qe7 {[%emt 0:02:23]} 37. hxg6 {[%emt 0:00:46]} fxg6 {[%emt 0:00:08]} 38. Qe4 {[%emt 0:00:13]} Qg5 {[%emt 0:00:19]} 39. Qe2 {[%emt 0:00:32]} (39. Qe1 $142 Qxg4 40. Kf1) 39... b5 $19 {[%emt 0:00:57]} 40. Bf3 {[%emt 0:00:34]} a4 {[%emt 0:01:29]} 41. bxa4 {[%emt 0:00:29]} bxa4 {[%emt 0:00:05] Hoping for ...a3.} 42. Qd1 {[%emt 0:00:17]} Qe3+ {[%emt 0:01:14]} 43. Kg2 {[%emt 0:00:14]} a3 {[%emt 0:03:37]} 44. Qb1 {[%emt 0:01:01]} Qd2+ {[%emt 0:00:11]} 45. Kg1 {[%emt 0:00:14]} Qb4 {[%emt 0:00:48]} 46. Qa2 {[%emt 0:00:11]} Qb2 {[%emt 0:00:25] Weighted Error Value: White=0.69/Black=0.10 (very precise)   Loses game:     	White=1     	---        Mistake:       	White=4     	Black=2      Inaccurate:     	White=3     	Black=2      OK:         	White=5     	Black=15     Best:        	White=1     	---} 0-1

[Event "22nd Indian Women chT 2025"]
[Site "Gujarat"]
[Date "2025.03.06"]
[Round "2.9"]
[White "Shreya G Hipparagi"]
[Black "Aamuktha Guntaka"]
[Result "0-1"]
[Annotator "NA RC"]
[ECO "B95"]
[WhiteElo "1837"]
[BlackElo "1910"]
[PlyCount "70"]
[EventDate "2025.03.03"]
[EventCountry "IND"]
[SourceTitle "playchess.com"]
[Source "ChessBase"]
[SourceQuality "1"]
[TimeControl "5400+30"]

1. e4 {[%emt 0:00:12]} c5 {[%emt 0:00:11]} 2. Nf3 {[%emt 0:00:12]} d6 {[%emt 0:00:08]} 3. d4 {[%emt 0:00:29]} cxd4 {[%emt 0:00:09]} 4. Nxd4 {[%emt 0:00:06]} Nf6 {[%emt 0:00:08]} 5. Nc3 {[%emt 0:00:07]} a6 {[%emt 0:00:07]} 6. Bg5 {[%emt 0:01:54]} e6 {[%emt 0:00:57]} 7. Be2 {[%emt 0:01:11]} Be7 {[%emt 0:02:47]} 8. Be3 {[%emt 0:01:38]} Qc7 {[%emt 0:08:32]} 9. O-O {[%emt 0:01:36]} O-O {[%emt 0:01:02]} 10. f3 {[%emt 0:03:10]} b5 {[%emt 0:04:24]} 11. a3 {[%emt 0:03:31]} Bb7 {[%emt 0:02:49]} 12. Qe1 {[%emt 0:00:27]} d5 {[%emt 0:05:13]} 13. exd5 {[%emt 0:03:59]} Nxd5 {[%emt 0:00:28]} 14. Nxd5 {[%emt 0:00:17]} Bxd5 {[%emt 0:00:40]} 15. Qf2 {[%emt 0:03:04]} Nd7 {[%emt 0:04:57]} 16. Rfd1 {[%emt 0:03:44]} Rac8 {[%emt 0:06:55]} 17. a4 {[%emt 0:04:58]} bxa4 {[%emt 0:09:35]} 18. Bxa6 {[%emt 0:04:02]} Ra8 {[%emt 0:14:11]} 19. Bb5 {[%emt 0:05:52]} Ne5 {[%emt 0:15:13]} 20. Nf5 {[%emt 0:32:18]} Bf6 {[%emt 0:09:00]} 21. Ng3 {[%emt 0:06:54]} Nc4 {[%emt 0:05:28]} 22. Bxc4 {[%emt 0:00:32]} Qxc4 {[%emt 0:00:43]} 23. Bd4 {[%emt 0:01:16]} Be7 {[%emt 0:01:55]} 24. Qe2 {[%emt 0:02:26]} Rfc8 {[%emt 0:01:35]} 25. Rd2 {[%emt 0:01:06]} Bg5 {[%emt 0:01:04]} 26. Be3 {[%emt 0:06:17]} Qxe2 {[%emt 0:00:25]} 27. Rxe2 {[%emt 0:00:07]} Bxe3+ {[%emt 0:00:25]} 28. Rxe3 {[%emt 0:00:05]} Rxc2 {[%emt 0:00:08]} 29. Rea3 {[%emt 0:00:05]} Bc6 {[%emt 0:01:49]} 30. b3 {[%emt 0:02:27]} Rb8 {[%emt 0:00:51]} 31. bxa4 {[%emt 0:06:08]} Rbb2 {[%emt 0:00:57]} 32. Nf1 {[%emt 0:00:10]} Rxg2+ {[%emt 0:00:31]} 33. Kh1 {[%emt 0:00:10]} Rgf2 {[%emt 0:01:17]} 34. Kg1 {[%emt 0:00:52]} Bxf3 {[%emt 0:00:47]} 35. Ne3 {[%emt 0:00:46]} Rxh2 {[%emt 0:00:30]} 0-1

[Event "22nd Indian Women chT 2025"]
[Site "Gujarat"]
[Date "2025.03.06"]
[Round "2.10"]
[White "Lasya.g"]
[Black "Jagadale Ishwari"]
[Result "1-0"]
[Annotator "RC"]
[ECO "B42"]
[WhiteElo "2059"]
[BlackElo "1854"]
[PlyCount "81"]
[EventDate "2025.03.03"]
[EventCountry "IND"]
[SourceTitle "playchess.com"]
[Source "ChessBase"]
[SourceQuality "1"]
[TimeControl "5400+30"]

1. e4 {[%emt 0:00:03]} c5 {[%emt 0:00:21]} 2. Nf3 {[%emt 0:00:21]} e6 {[%emt 0:00:22]} 3. d4 {[%emt 0:00:08]} cxd4 {[%emt 0:00:06]} 4. Nxd4 {[%emt 0:00:05]} a6 {[%emt 0:00:03]} 5. Bd3 {[%emt 0:01:28]} Nf6 {[%emt 0:00:40]} 6. Qe2 {[%emt 0:03:48]} d6 {[%emt 0:03:25]} 7. c4 {[%emt 0:01:17]} Qc7 {[%emt 0:00:31]} 8. O-O {[%emt 0:01:12]} b6 {[%emt 0:01:20]} 9. Nc3 {[%emt 0:00:56]} Bb7 {[%emt 0:00:29]} 10. f4 {[%emt 0:01:51]} Nbd7 {[%emt 0:00:55]} 11. Kh1 {[%emt 0:01:06]} Be7 {[%emt 0:19:31]} 12. Bd2 {[%emt 0:13:46]} g6 {[%emt 0:07:41]} 13. b4 {[%emt 0:07:52]} h5 {[%emt 0:04:52]} 14. Rac1 {[%emt 0:06:34]} h4 {[%emt 0:09:26]} 15. Nd5 {[%emt 0:04:13]} Qd8 {[%emt 0:16:23]} 16. Nxe7 {[%emt 0:07:44]} Qxe7 {[%emt 0:00:23]} 17. Kg1 {[%emt 0:01:06]} Nh5 {[%emt 0:12:00]} 18. Nf3 {[%emt 0:11:01]} e5 {[%emt 0:08:47]} 19. fxe5 {[%emt 0:00:46]} dxe5 {[%emt 0:00:55]} 20. c5 {[%emt 0:10:37]} bxc5 {[%emt 0:07:47]} 21. bxc5 {[%emt 0:00:09]} Bc6 {[%emt 0:03:09]} 22. Qf2 {[%emt 0:04:08]} f6 {[%emt 0:01:38]} 23. Nxh4 {[%emt 0:02:23]} Qh7 {[%emt 0:00:28]} 24. h3 {[%emt 0:06:45]} Nf4 {[%emt 0:00:43]} 25. Bxf4 {[%emt 0:00:05]} exf4 {[%emt 0:00:04]} 26. Qxf4 {[%emt 0:03:25]} Qxh4 {[%emt 0:01:00]} 27. Qd6 {[%emt 0:00:11]} Nb8 {[%emt 0:00:31]} 28. Rxf6 {[%emt 0:01:02]} Qg5 {[%emt 0:00:20]} 29. Rcf1 {[%emt 0:04:01]} Nd7 {[%emt 0:00:30]} 30. Qxc6 {[%emt 0:01:08]} Rb8 {[%emt 0:00:15]} 31. Rf7 {[%emt 0:02:23]} Qe3+ {[%emt 0:00:15]} 32. R1f2 {[%emt 0:01:52]} Qxd3 {[%emt 0:00:12]} 33. Qxg6 {[%emt 0:00:12]} Kd8 {[%emt 0:00:34]} 34. c6 {[%emt 0:01:05]} Rb1+ {[%emt 0:00:43]} 35. Kh2 {[%emt 0:00:11]} Kc8 {[%emt 0:01:02]} 36. cxd7+ {[%emt 0:00:28]} Kc7 {[%emt 0:00:32]} 37. d8=Q+ {[%emt 0:00:17]} Kxd8 {[%emt 0:00:07]} 38. Qf6+ {[%emt 0:00:04]} Kc8 {[%emt 0:00:08]} 39. Qxh8+ {[%emt 0:00:09]} Qd8 {[%emt 0:00:10]} 40. Rc2+ {[%emt 0:00:08]} Kb8 {[%emt 0:00:06]} 41. Qxd8# {[%emt 0:00:06]} 1-0